[Event "Championnat du monde jeunes U12F"]
[Date "2024.11.20"]
[White "Siskou, Evangelia"]
[Black "Chovanec, Alice"]
[WhiteElo "1884"]
[BlackElo "1694"]
[Round "6.11"]
[Result "1/2-1/2"]
[TimeControl "5400+30"]

1. c4 {[%clk 1:30:54]} 1... e5 {[%clk 1:30:46]} 2. g3 {[%clk 1:31:16]} 2... c6
{[%clk 1:30:50]} 3. d4 {[%clk 1:30:54]} 3... e4 {[%clk 1:29:54]} 4. d5 {[%clk
1:31:04]} 4... Nf6 {[%clk 1:26:47]} 5. Nc3 {[%clk 1:26:30]} 5... Bc5 {[%clk
1:12:47]} 6. Bg2 {[%clk 1:21:28]} 6... Qe7 {[%clk 1:08:18]} 7. e3 {[%clk
1:07:24]} 7... d6 {[%clk 1:05:46]} 8. h3 {[%clk 1:06:01]} 8... Bf5 {[%clk
1:02:25]} 9. Nge2 {[%clk 1:03:03]} 9... Nbd7 {[%clk 0:57:35]} 10. g4 {[%clk
0:56:56]} 10... Bg6 {[%clk 0:55:19]} 11. Ng3 {[%clk 0:50:26]} 11... h6 {[%clk
0:51:32]} 12. O-O {[%clk 0:47:22]} 12... O-O {[%clk 0:50:26]} 13. b3 {[%clk
0:37:22]} 13... Nb6 {[%clk 0:31:40]} 14. a3 {[%clk 0:31:26]} 14... a5 {[%clk
0:31:22]} 15. Rb1 {[%clk 0:31:32]} 15... Nbd7 {[%clk 0:28:17]} 16. b4 {[%clk
0:27:46]} 16... axb4 {[%clk 0:24:42]} 17. axb4 {[%clk 0:28:13]} 17... Ba7 {[%clk
0:24:42]} 18. dxc6 {[%clk 0:18:49]} 18... bxc6 {[%clk 0:24:44]} 19. b5 {[%clk
0:18:27]} 19... cxb5 {[%clk 0:24:31]} 20. Ba3 {[%clk 0:17:17]} 20... Bc5 {[%clk
0:23:21]} 21. Bxc5 {[%clk 0:17:44]} 21... Nxc5 {[%clk 0:23:41]} 22. Rxb5 {[%clk
0:16:18]} 22... Qe6 {[%clk 0:22:35]} 23. Qd4 {[%clk 0:15:54]} 23... Rfe8 {[%clk
0:20:11]} 24. Rb6 {[%clk 0:14:18]} 24... Rad8 {[%clk 0:19:06]} 25. Nb5 {[%clk
0:12:33]} 25... Rd7 {[%clk 0:15:42]} 26. Rd1 {[%clk 0:06:31]} 26... Nb7 {[%clk
0:10:55]} 27. Rc6 {[%clk 0:04:15]} 27... Red8 {[%clk 0:09:07]} 28. Ne2 {[%clk
0:01:54]} 28... Na5 {[%clk 0:08:41]} 29. Ra6 {[%clk 0:00:58]} 29... Qxc4 {[%clk
0:07:18]} 30. Rxa5 {[%clk 0:01:17]} 30... Qxe2 {[%clk 0:07:15]} 31. Nc3 {[%clk
0:00:55]} 31... Qc2 {[%clk 0:06:28]} 32. Bf1 {[%clk 0:00:39]} 32... Qb3 {[%clk
0:04:50]} 33. Bc4 {[%clk 0:00:49]} 33... Qb8 {[%clk 0:05:00]} 34. Rb1 {[%clk
0:00:45]} 34... Rb7 {[%clk 0:04:58]} 35. Rxb7 {[%clk 0:00:51]} 35... Qxb7 {[%clk
0:05:25]} 36. Ra7 {[%clk 0:01:19]} 36... Qb2 {[%clk 0:05:17]} 37. Ra2 {[%clk
0:00:42]} 37... Qb8 {[%clk 0:05:31]} 38. Ra6 {[%clk 0:00:39]} 38... Qb2 {[%clk
0:04:26]} 39. Rb6 {[%clk 0:00:46]} 39... Qa1+ {[%clk 0:04:33]} 40. Kg2 {[%clk
0:01:14]} 40... d5 {[%clk 0:03:32]} 41. Ba2 {[%clk 0:00:32]} 41... Rc8 {[%clk
0:02:26]} 42. Nxd5 {[%clk 0:00:41]} 42... Qxd4 {[%clk 0:02:01]} 43. Ne7+ {[%clk
0:00:48]} 43... Kf8 {[%clk 0:02:00]} 44. Nxg6+ {[%clk 0:01:13]} 44... fxg6
{[%clk 0:02:27]} 45. exd4 {[%clk 0:01:42]} 45... Rd8 {[%clk 0:02:44]} 46. Rb4
{[%clk 0:01:49]} 46... Nd5 {[%clk 0:03:01]} 47. Rb7 {[%clk 0:00:57]} 47... Nf4+
{[%clk 0:02:32]} 48. Kh2 {[%clk 0:01:04]} 48... Nd5 {[%clk 0:02:44]} 49. Kg3
{[%clk 0:01:17]} 49... Nc3 {[%clk 0:02:42]} 50. Bc4 {[%clk 0:00:39]} 50... Rxd4
{[%clk 0:02:49]} 51. Bb3 {[%clk 0:00:38]} 51... Nd5 {[%clk 0:01:34]} 52. Bxd5
{[%clk 0:00:31]} 52... Rxd5 {[%clk 0:01:58]} 53. Rb4 {[%clk 0:00:38]} 53... Rd3+
{[%clk 0:02:22]} 54. Kg2 {[%clk 0:01:00]} 54... e3 {[%clk 0:02:42]} 55. f4
{[%clk 0:00:33]} 55... e2 {[%clk 0:02:56]} 56. Re4 {[%clk 0:00:50]} 56... Rd2
{[%clk 0:03:11]} 57. Kg3 {[%clk 0:00:41]} 57... Rd3+ {[%clk 0:03:13]} 58. Kg2
{[%clk 0:00:39]} 58... Rd4 {[%clk 0:03:16]} 59. Rxe2 {[%clk 0:01:04]} 59... Rxf4
{[%clk 0:03:43]} 60. Kg3 {[%clk 0:01:29]} 60... Rf6 {[%clk 0:03:57]} 61. Ra2
{[%clk 0:01:19]} 61... Rb6 {[%clk 0:03:52]} 62. Ra7 {[%clk 0:00:47]} 62... g5
{[%clk 0:04:05]} 63. Ra3 {[%clk 0:00:55]} 63... Kf7 {[%clk 0:04:02]} 64. Rc3
{[%clk 0:00:53]} 64... Kf6 {[%clk 0:04:25]} 65. Re3 {[%clk 0:00:55]} 65... Re6
{[%clk 0:04:33]} 66. Rf3+ {[%clk 0:01:04]} 66... Ke7 {[%clk 0:04:33]} 67. Rd3
{[%clk 0:01:17]} 67... Rf6 {[%clk 0:04:51]} 68. Ra3 {[%clk 0:01:37]} 68... Rd6
{[%clk 0:04:43]} 69. Re3+ {[%clk 0:01:53]} 69... Kd7 {[%clk 0:05:09]} 70. Rc3
{[%clk 0:02:00]} 70... Re6 {[%clk 0:05:03]} 71. Ra3 {[%clk 0:02:06]} 71... Ke7
{[%clk 0:05:25]} 72. Rd3 {[%clk 0:02:23]} 72... Re4 {[%clk 0:05:48]} 73. Ra3
{[%clk 0:02:06]} 73... Kf6 {[%clk 0:06:01]} 74. Ra6+ {[%clk 0:02:24]} 74... Re6
{[%clk 0:06:18]} 75. Ra3 {[%clk 0:02:13]} 75... Kg6 {[%clk 0:06:39]} 76. Rb3
{[%clk 0:00:52]} 76... Re7 {[%clk 0:06:43]} 77. Rb6+ {[%clk 0:01:17]} 77... Kf7
{[%clk 0:07:09]} 78. Rb3 {[%clk 0:01:18]} 78... Ke6 {[%clk 0:07:23]} 79. Rb5
{[%clk 0:01:00]} 79... Kd6 {[%clk 0:07:42]} 80. Rb6+ {[%clk 0:00:55]} 80... Kc5
{[%clk 0:07:56]} 81. Rg6 {[%clk 0:00:54]} 81... Kd5 {[%clk 0:08:02]} 82. h4
{[%clk 0:00:37]} 82... gxh4+ {[%clk 0:08:23]} 83. Kxh4 {[%clk 0:01:06]} 83...
Ke4 {[%clk 0:08:36]} 84. Ra6 {[%clk 0:00:35]} 84... Kf3 {[%clk 0:07:43]} 85.
Ra3+ {[%clk 0:00:46]} 85... Ke4 {[%clk 0:07:37]} 86. g5 {[%clk 0:00:58]} 86...
Kf5 {[%clk 0:07:23]} 87. Ra5+ {[%clk 0:00:57]} 87... Kg6 {[%clk 0:07:37]} 88.
Ra6+ {[%clk 0:01:21]} 88... Kf5 {[%clk 0:06:46]} 1/2-1/2

[Variant "Standard"]
[Site "Europe Echecs"]

[Event "Championnat du monde jeunes U12F"]
[Date "2024.11.20"]
[White "Xu, Luna Yuexiu"]
[Black "Bohatyrova, Mariia"]
[WhiteElo "1821"]
[BlackElo "1722"]
[Round "6.12"]
[Result "1-0"]
[TimeControl "5400+30"]

1. e4 {[%clk 1:30:57]} 1... c5 {[%clk 1:30:56]} 2. Nf3 {[%clk 1:31:20]} 2... Nc6
{[%clk 1:31:19]} 3. d4 {[%clk 1:29:24]} 3... cxd4 {[%clk 1:31:43]} 4. Nxd4
{[%clk 1:29:48]} 4... g6 {[%clk 1:32:00]} 5. Nc3 {[%clk 1:29:57]} 5... Bg7
{[%clk 1:32:21]} 6. Be3 {[%clk 1:30:07]} 6... Nf6 {[%clk 1:32:35]} 7. Bc4 {[%clk
1:29:23]} 7... O-O {[%clk 1:31:50]} 8. f3 {[%clk 1:29:06]} 8... a6 {[%clk
1:18:28]} 9. Qd2 {[%clk 1:25:21]} 9... Qc7 {[%clk 1:15:39]} 10. Bb3 {[%clk
1:24:59]} 10... Rd8 {[%clk 1:03:46]} 11. O-O-O {[%clk 1:20:47]} 11... Ne5 {[%clk
0:43:14]} 12. h4 {[%clk 1:16:36]} 12... h5 {[%clk 0:38:18]} 13. Bg5 {[%clk
1:14:37]} 13... Re8 {[%clk 0:27:33]} 14. Bxf6 {[%clk 1:07:10]} 14... Bxf6 {[%clk
0:19:09]} 15. Nd5 {[%clk 1:06:59]} 15... Qc5 {[%clk 0:16:38]} 16. Nxf6+ {[%clk
1:06:02]} 16... exf6 {[%clk 0:17:04]} 17. Qh6 {[%clk 1:06:20]} 17... Qf8 {[%clk
0:16:05]} 18. Qf4 {[%clk 1:05:59]} 18... Qd6 {[%clk 0:14:05]} 19. Kb1 {[%clk
1:05:22]} 19... Qe7 {[%clk 0:12:49]} 20. g4 {[%clk 1:04:34]} 20... hxg4 {[%clk
0:10:54]} 21. fxg4 {[%clk 1:04:57]} 21... d6 {[%clk 0:10:05]} 22. g5 {[%clk
1:03:45]} 22... Ng4 {[%clk 0:05:02]} 23. Rhf1 {[%clk 1:00:07]} 23... Qe5 {[%clk
0:04:32]} 24. gxf6 {[%clk 0:59:30]} 24... Qxe4 {[%clk 0:03:38]} 25. Qxd6 {[%clk
0:58:29]} 25... Qe5 {[%clk 0:01:45]} 26. Qb6 {[%clk 0:51:51]} 26... a5 {[%clk
0:00:35]} 27. Nf3 {[%clk 0:51:39]} 27... Qxf6 28. Qxf6 {[%clk 0:51:54]} 28...
Nxf6 29. Ng5 {[%clk 0:52:12]} 29... Kg7 {[%clk 0:00:41]} 30. Rd6 {[%clk
0:52:11]} 30... Bf5 {[%clk 0:00:46]} 31. Nxf7 {[%clk 0:50:32]} 31... a4 {[%clk
0:00:59]} 32. Bc4 {[%clk 0:50:30]} 32... Rac8 {[%clk 0:01:01]} 33. Rxf6 {[%clk
0:49:19]} 33... Kxf6 {[%clk 0:00:43]} 34. Nd6 {[%clk 0:49:44]} 34... Kg7 {[%clk
0:00:35]} 35. Nxc8 {[%clk 0:48:32]} 35... Rxc8 {[%clk 0:01:01]} 36. Bd3 {[%clk
0:47:24]} 36... Bxd3 {[%clk 0:00:54]} 37. cxd3 {[%clk 0:47:46]} 37... Kh6 {[%clk
0:00:44]} 38. Rf4 {[%clk 0:47:47]} 38... a3 {[%clk 0:00:35]} 39. bxa3 {[%clk
0:47:42]} 39... Rc3 {[%clk 0:00:54]} 40. d4 {[%clk 0:47:15]} 40... Rxa3 {[%clk
0:01:09]} 41. Kb2 {[%clk 0:47:11]} 41... Rd3 {[%clk 0:00:51]} 42. a4 {[%clk
0:47:20]} 42... Rh3 {[%clk 0:00:35]} 43. Kc2 {[%clk 0:47:36]} 43... Ra3 {[%clk
0:00:37]} 44. d5 {[%clk 0:48:00]} 44... g5 {[%clk 0:00:34]} 45. hxg5+ {[%clk
0:47:38]} 45... Kxg5 {[%clk 0:00:46]} 46. Rd4 {[%clk 0:47:46]} 46... Rh3 {[%clk
0:00:50]} 47. d6 {[%clk 0:47:42]} 47... Rh8 {[%clk 0:01:06]} 48. Kc3 {[%clk
0:48:01]} 48... Rd8 {[%clk 0:00:41]} 49. Kc4 {[%clk 0:48:24]} 49... Kf6 {[%clk
0:00:35]} 50. Kd5 {[%clk 0:48:29]} 50... Kf5 {[%clk 0:00:32]} 51. Rb4 {[%clk
0:48:32]} 51... Rd7 {[%clk 0:00:39]} 52. Rc4 {[%clk 0:48:46]} 52... Rd8 {[%clk
0:00:33]} 53. Rc7 {[%clk 0:49:08]} 53... b6 {[%clk 0:00:35]} 54. d7 {[%clk
0:49:28]} 54... Kf6 {[%clk 0:00:41]} 55. Kd6 {[%clk 0:49:54]} 55... b5 {[%clk
0:00:34]} 56. axb5 {[%clk 0:50:05]} 56... Rb8 {[%clk 0:00:34]} 57. Rc8 {[%clk
0:50:30]} 57... Rxb5 {[%clk 0:00:32]} 58. d8=Q+ {[%clk 0:50:52]} 58... Kg6
{[%clk 0:00:31]} 59. Qe8+ {[%clk 0:51:14]} 59... Kg7 {[%clk 0:00:42]} 60. Qxb5
{[%clk 0:51:25]} 60... Kg6 {[%clk 0:00:52]} 61. Rg8+ {[%clk 0:51:14]} 61... Kh6
{[%clk 0:00:56]} 62. Qg5+ {[%clk 0:51:36]} 62... Kh7 {[%clk 0:01:19]} 63. Qg6#
{[%clk 0:52:01]} 1-0

[Variant "Standard"]
[Site "Europe Echecs"]

[Event "Championnat du monde jeunes U12F"]
[Date "2024.11.20"]
[White "Oksanen, Maria"]
[Black "Abak, Tuana"]
[WhiteElo "1725"]
[BlackElo "1806"]
[Round "6.13"]
[Result "0-1"]
[TimeControl "5400+30"]

1. e4 c5 2. Nf3 {[%clk 1:30:46]} 2... d6 {[%clk 1:30:57]} 3. Bb5+ Bd7 4. Bxd7+
{[%clk 1:30:45]} 4... Qxd7 {[%clk 1:31:21]} 5. O-O {[%clk 1:31:05]} 5... Nc6
{[%clk 1:30:57]} 6. c3 {[%clk 1:31:18]} 6... g6 {[%clk 1:29:35]} 7. d4 {[%clk
1:29:48]} 7... cxd4 {[%clk 1:29:59]} 8. cxd4 {[%clk 1:30:15]} 8... Bg7 {[%clk
1:30:21]} 9. Nc3 {[%clk 1:29:37]} 9... Nf6 {[%clk 1:29:26]} 10. Re1 {[%clk
1:29:43]} 10... O-O {[%clk 1:29:41]} 11. Rb1 {[%clk 1:26:35]} 11... Rac8 {[%clk
1:24:53]} 12. Bg5 {[%clk 1:26:04]} 12... Rfd8 {[%clk 1:20:37]} 13. Qd2 {[%clk
1:23:26]} 13... b6 {[%clk 1:13:17]} 14. b4 {[%clk 1:20:13]} 14... Qb7 {[%clk
0:59:03]} 15. Nd5 {[%clk 1:16:55]} 15... Rd7 {[%clk 0:57:10]} 16. Rbc1 {[%clk
1:14:34]} 16... Re8 {[%clk 0:56:42]} 17. Bxf6 {[%clk 1:07:10]} 17... Bxf6 {[%clk
0:53:58]} 18. b5 {[%clk 1:07:30]} 18... Nd8 {[%clk 0:50:19]} 19. Nxf6+ {[%clk
1:07:18]} 19... exf6 {[%clk 0:50:47]} 20. d5 {[%clk 1:07:04]} 20... Rde7 {[%clk
0:41:55]} 21. Rc4 {[%clk 1:04:53]} 21... Qd7 {[%clk 0:42:01]} 22. a4 {[%clk
1:04:34]} 22... Nb7 {[%clk 0:39:43]} 23. Qf4 {[%clk 0:39:27]} 23... f5 {[%clk
0:39:48]} 24. Nd2 {[%clk 0:38:43]} 24... Nc5 {[%clk 0:40:03]} 25. f3 {[%clk
0:38:27]} 25... Nd3 {[%clk 0:40:14]} 26. Qg3 {[%clk 0:37:34]} 26... Nxe1 {[%clk
0:38:18]} 27. Qxe1 {[%clk 0:38:01]} 27... fxe4 {[%clk 0:38:33]} 28. Nxe4 {[%clk
0:36:01]} 28... Qf5 {[%clk 0:38:02]} 29. Qc3 {[%clk 0:34:30]} 29... Re5 {[%clk
0:34:59]} 30. g4 {[%clk 0:30:12]} 30... Qf4 {[%clk 0:35:00]} 31. Kg2 {[%clk
0:23:27]} 31... Rxe4 {[%clk 0:33:53]} 32. fxe4 {[%clk 0:23:31]} 32... Qxg4+
{[%clk 0:34:18]} 33. Kf2 {[%clk 0:22:37]} 33... Qf4+ {[%clk 0:34:36]} 34. Kg2
{[%clk 0:22:44]} 34... Re5 {[%clk 0:34:14]} 35. Rc8+ {[%clk 0:22:34]} 35... Kg7
{[%clk 0:34:39]} 36. Rc4 {[%clk 0:22:49]} 36... Qf6 {[%clk 0:35:05]} 37. Qd3
{[%clk 0:16:53]} 37... Rg5+ {[%clk 0:35:23]} 38. Kh3 {[%clk 0:17:18]} 38... Qf4
{[%clk 0:31:14]} 39. Qc3+ {[%clk 0:06:48]} 39... Kh6 {[%clk 0:31:37]} 0-1

[Variant "Standard"]
[Site "Europe Echecs"]

[Event "Championnat du monde jeunes U12F"]
[Date "2024.11.20"]
[White "Xia, Miaoyan"]
[Black "Jordan, Christina"]
[WhiteElo "1711"]
[BlackElo "1803"]
[Round "6.14"]
[Result "0-1"]
[TimeControl "5400+30"]

1. e4 {[%clk 1:30:57]} 1... c5 {[%clk 1:30:49]} 2. Nf3 {[%clk 1:31:17]} 2... d6
{[%clk 1:31:12]} 3. d4 {[%clk 1:31:40]} 3... cxd4 {[%clk 1:31:34]} 4. Nxd4
{[%clk 1:32:02]} 4... Nf6 {[%clk 1:31:49]} 5. Nc3 {[%clk 1:32:22]} 5... a6
{[%clk 1:32:07]} 6. Be3 {[%clk 1:32:33]} 6... e5 {[%clk 1:32:11]} 7. Nb3 {[%clk
1:32:53]} 7... Be6 {[%clk 1:32:25]} 8. f3 {[%clk 1:33:09]} 8... h5 {[%clk
1:32:22]} 9. Nd5 {[%clk 1:33:07]} 9... Bxd5 {[%clk 1:31:23]} 10. exd5 {[%clk
1:33:20]} 10... Nbd7 {[%clk 1:31:03]} 11. Qd2 {[%clk 1:33:19]} 11... g6 {[%clk
1:30:32]} 12. O-O-O {[%clk 1:33:16]} 12... Nb6 {[%clk 1:30:13]} 13. Kb1 {[%clk
1:33:27]} 13... Nbxd5 {[%clk 1:28:48]} 14. Bg5 {[%clk 1:31:54]} 14... Be7 {[%clk
1:25:51]} 15. c4 {[%clk 1:19:15]} 15... Nb6 {[%clk 1:18:38]} 16. c5 {[%clk
1:16:22]} 16... dxc5 {[%clk 1:11:26]} 17. Nxc5 {[%clk 1:15:20]} 17... Nfd5
{[%clk 1:04:29]} 18. Bxe7 {[%clk 1:03:17]} 18... Qxe7 {[%clk 1:04:49]} 19. Qa5
{[%clk 1:02:32]} 19... Rd8 {[%clk 0:58:14]} 20. Na4 {[%clk 0:54:06]} 20... Nxa4
{[%clk 0:54:11]} 21. Qxa4+ {[%clk 0:54:18]} 21... Qd7 {[%clk 0:53:04]} 22. Qxd7+
{[%clk 0:54:32]} 22... Rxd7 {[%clk 0:53:30]} 23. Bc4 {[%clk 0:54:47]} 23... Nb6
{[%clk 0:53:05]} 24. Rxd7 {[%clk 0:54:59]} 24... Nxd7 {[%clk 0:53:25]} 25. Bd5
{[%clk 0:52:37]} 25... b6 {[%clk 0:50:23]} 26. Bc6 {[%clk 0:51:52]} 26... Ke7
{[%clk 0:49:33]} 27. Re1 {[%clk 0:50:38]} 27... f6 {[%clk 0:48:10]} 28. f4
{[%clk 0:49:33]} 28... Nb8 {[%clk 0:46:50]} 29. Bd5 {[%clk 0:48:40]} 29... Rd8
{[%clk 0:45:22]} 30. Bf3 {[%clk 0:47:08]} 30... Nd7 {[%clk 0:42:26]} 31. h4
{[%clk 0:43:24]} 31... Kf7 32. Rd1 Ke7 {[%clk 0:36:06]} 33. f5 {[%clk 0:36:47]}
33... gxf5 {[%clk 0:34:02]} 34. Bxh5 {[%clk 0:36:55]} 34... Rh8 {[%clk 0:34:22]}
35. Bg6 {[%clk 0:35:41]} 35... Rxh4 {[%clk 0:34:41]} 36. Bxf5 {[%clk 0:35:44]}
36... Nc5 {[%clk 0:34:23]} 37. a3 {[%clk 0:35:28]} 37... Rf4 {[%clk 0:32:34]}
38. g4 {[%clk 0:35:04]} 38... Ne6 {[%clk 0:30:57]} 39. Bxe6 {[%clk 0:32:32]}
39... Kxe6 {[%clk 0:31:20]} 40. Rg1 {[%clk 0:32:52]} 40... e4 {[%clk 0:29:59]}
41. Kc1 {[%clk 0:32:49]} 41... Ke5 {[%clk 0:27:08]} 42. g5 {[%clk 0:32:27]}
42... fxg5 {[%clk 0:27:15]} 43. Rxg5+ Kd4 {[%clk 0:26:01]} 44. Rg6 {[%clk
0:31:47]} 44... e3 {[%clk 0:25:32]} 45. Kd1 {[%clk 0:30:48]} 45... Rf1+ {[%clk
0:25:35]} 46. Ke2 {[%clk 0:30:40]} 46... Rf2+ {[%clk 0:25:54]} 47. Ke1 {[%clk
0:30:46]} 47... Rxb2 {[%clk 0:26:15]} 48. a4 {[%clk 0:30:29]} 48... Ra2 {[%clk
0:23:19]} 49. Rxb6 {[%clk 0:30:45]} 49... Rxa4 {[%clk 0:23:38]} 50. Rd6+ {[%clk
0:31:05]} 50... Ke5 {[%clk 0:23:46]} 51. Rd8 {[%clk 0:31:27]} 51... a5 {[%clk
0:23:17]} 52. Ra8 {[%clk 0:30:49]} 52... Kd4 {[%clk 0:22:09]} 53. Rd8+ {[%clk
0:29:02]} 53... Ke4 {[%clk 0:22:23]} 54. Ra8 {[%clk 0:27:47]} 54... Kd3 {[%clk
0:22:37]} 55. Rd8+ {[%clk 0:27:42]} 55... Rd4 {[%clk 0:23:01]} 56. Ra8 {[%clk
0:27:51]} 56... a4 {[%clk 0:23:04]} 57. Ra7 {[%clk 0:27:45]} 57... Kc3 {[%clk
0:21:33]} 58. Ke2 {[%clk 0:28:03]} 58... Re4 {[%clk 0:21:17]} 59. Ra8 {[%clk
0:27:03]} 59... Kb3 {[%clk 0:21:26]} 60. Rb8+ {[%clk 0:26:07]} 60... Rb4 {[%clk
0:20:26]} 61. Rh8 {[%clk 0:25:39]} 61... a3 {[%clk 0:20:30]} 62. Kxe3 {[%clk
0:21:48]} 62... a2 {[%clk 0:20:50]} 63. Rh1 {[%clk 0:22:09]} 63... Ka3 {[%clk
0:21:11]} 64. Kd2 {[%clk 0:21:03]} 64... Rb1 {[%clk 0:21:31]} 65. Rh3+ {[%clk
0:21:28]} 65... Kb2 {[%clk 0:21:08]} 0-1

[Variant "Standard"]
[Site "Europe Echecs"]

[Event "Championnat du monde jeunes U12F"]
[Date "2024.11.20"]
[White "Li, Sophie"]
[Black "Tursunalieva, Nurelina"]
[WhiteElo "1798"]
[BlackElo "1701"]
[Round "6.15"]
[Result "1-0"]
[TimeControl "5400+30"]

1. e4 {[%clk 1:30:56]} 1... c5 {[%clk 1:30:53]} 2. Nf3 {[%clk 1:31:19]} 2... d6
{[%clk 1:31:20]} 3. d4 {[%clk 1:31:32]} 3... cxd4 {[%clk 1:31:45]} 4. Qxd4
{[%clk 1:31:55]} 4... Nc6 {[%clk 1:32:10]} 5. Qd3 {[%clk 1:32:13]} 5... Qc7
{[%clk 1:32:00]} 6. Nc3 {[%clk 1:31:50]} 6... Nf6 {[%clk 1:31:05]} 7. Be2 {[%clk
1:31:17]} 7... g6 {[%clk 1:27:41]} 8. O-O {[%clk 1:24:15]} 8... Bg7 {[%clk
1:27:58]} 9. Bg5 {[%clk 1:21:37]} 9... Qd8 {[%clk 1:17:15]} 10. Nd5 {[%clk
1:20:27]} 10... Nxd5 {[%clk 1:09:48]} 11. exd5 {[%clk 1:20:49]} 11... Nb8 {[%clk
1:09:20]} 12. Rfe1 {[%clk 1:17:48]} 12... O-O {[%clk 1:08:13]} 13. c3 {[%clk
1:16:18]} 13... Nd7 {[%clk 1:05:34]} 14. Nd4 {[%clk 1:10:25]} 14... Nf6 {[%clk
0:57:26]} 15. Bf3 {[%clk 1:08:34]} 15... Re8 {[%clk 0:47:36]} 16. Re2 {[%clk
1:06:22]} 16... Nd7 {[%clk 0:44:45]} 17. Rae1 {[%clk 1:02:23]} 17... Ne5 {[%clk
0:44:31]} 18. Qe4 {[%clk 1:02:02]} 18... h6 {[%clk 0:39:20]} 19. Bc1 {[%clk
0:58:30]} 19... a6 {[%clk 0:31:44]} 20. g3 {[%clk 0:57:04]} 20... Nxf3+ {[%clk
0:22:22]} 21. Qxf3 {[%clk 0:55:14]} 21... Bd7 {[%clk 0:17:36]} 22. Re4 {[%clk
0:54:23]} 22... Rc8 {[%clk 0:07:04]} 23. Qe2 {[%clk 0:52:58]} 23... Qa5 {[%clk
0:02:49]} 24. Rd1 {[%clk 0:37:48]} 24... Qd8 {[%clk 0:01:19]} 25. Qf3 {[%clk
0:36:26]} 25... h5 {[%clk 0:00:37]} 26. Rde1 {[%clk 0:36:09]} 26... Bg4 {[%clk
0:00:32]} 27. Qe3 {[%clk 0:36:14]} 27... Rc7 {[%clk 0:00:34]} 28. Bd2 {[%clk
0:35:42]} 28... Qc8 {[%clk 0:00:31]} 29. f3 {[%clk 0:34:10]} 29... Bf5 {[%clk
0:00:45]} 30. Nxf5 {[%clk 0:33:17]} 30... Qxf5 {[%clk 0:01:13]} 31. Qd3 {[%clk
0:31:25]} 31... Qd7 {[%clk 0:00:32]} 32. Bg5 {[%clk 0:31:07]} 32... f6 {[%clk
0:00:39]} 33. Bd2 {[%clk 0:31:00]} 33... Kf7 {[%clk 0:00:40]} 34. Re6 {[%clk
0:31:08]} 34... Qb5 {[%clk 0:00:34]} 35. Qxb5 {[%clk 0:27:58]} 35... axb5 {[%clk
0:01:00]} 36. Bf4 {[%clk 0:27:53]} 36... Ra8 {[%clk 0:00:32]} 37. a3 {[%clk
0:27:58]} 37... Bf8 {[%clk 0:00:44]} 38. Be3 {[%clk 0:27:58]} 38... Rc4 {[%clk
0:00:35]} 39. Bd4 {[%clk 0:27:35]} 39... Rc7 {[%clk 0:00:32]} 40. Kf2 {[%clk
0:27:19]} 40... Ra6 {[%clk 0:00:32]} 41. Ke3 {[%clk 0:26:57]} 41... Bh6+ {[%clk
0:00:32]} 42. Kd3 {[%clk 0:27:18]} 42... Ra8 {[%clk 0:00:32]} 43. h3 {[%clk
0:26:25]} 43... g5 {[%clk 0:00:33]} 44. g4 {[%clk 0:25:56]} 44... h4 {[%clk
0:00:40]} 45. R1e4 {[%clk 0:25:28]} 45... Bf8 {[%clk 0:00:31]} 46. Bb6 {[%clk
0:25:37]} 46... Rc4 {[%clk 0:00:31]} 47. Rxc4 {[%clk 0:24:42]} 47... bxc4+
{[%clk 0:00:55]} 48. Kxc4 {[%clk 0:25:01]} 48... Ra4+ {[%clk 0:00:31]} 49. Kd3
{[%clk 0:24:53]} 49... Rf4 {[%clk 0:00:38]} 50. Ke3 {[%clk 0:24:54]} 50... f5
{[%clk 0:00:40]} 51. Ke2 {[%clk 0:24:37]} 51... fxg4 {[%clk 0:00:33]} 52. fxg4
{[%clk 0:25:02]} 52... Rc4 {[%clk 0:00:42]} 53. Bd4 {[%clk 0:24:48]} 53... Ra4
{[%clk 0:00:31]} 54. Kd3 {[%clk 0:24:50]} 54... b5 {[%clk 0:00:31]} 55. Be3
{[%clk 0:24:03]} 55... Ra5 {[%clk 0:00:32]} 56. Ke4 {[%clk 0:24:22]} 56... Ra4+
{[%clk 0:00:33]} 57. Kf5 {[%clk 0:24:13]} 57... Ra5 {[%clk 0:00:34]} 58. Bb6
{[%clk 0:23:56]} 58... Ra6 {[%clk 0:00:46]} 59. Bc5 {[%clk 0:24:13]} 59... Ra8
{[%clk 0:00:32]} 60. Bb4 {[%clk 0:24:36]} 60... Bg7 {[%clk 0:00:41]} 61. Kxg5
{[%clk 0:24:46]} 61... Bf6+ {[%clk 0:00:59]} 62. Kf4 {[%clk 0:25:08]} 62... Be5+
{[%clk 0:00:32]} 63. Kf5 {[%clk 0:25:09]} 63... Rf8 {[%clk 0:00:36]} 64. Ke4
{[%clk 0:24:35]} 64... Rh8 {[%clk 0:00:32]} 65. g5 {[%clk 0:24:47]} 65... Rh5
{[%clk 0:00:34]} 66. g6+ {[%clk 0:24:58]} 66... Kf8 {[%clk 0:00:42]} 67. Ba5
{[%clk 0:24:56]} 67... Rg5 {[%clk 0:00:31]} 68. g7+ {[%clk 0:24:09]} 68... Rxg7
1-0

[Variant "Standard"]
[Site "Europe Echecs"]